[Event "Titled Tuesday Blitz July 25 Late 2023"]
[White "Georg, Heinz"]
[Black "Ocido, Michael"]
[WhiteFideId "4607295"]
[BlackFideId "115201920"]
[WhiteElo "2277"]
[BlackElo "2461"]
[Result "1-0"]
[Round "4"]
[TimeControl "180+2"]
[Date "2023.07.25"]
[WhiteClock "0:00:04"]
[BlackClock "0:00:00"]
[Board "142"]

1. c4 {[%clk 0:03:00]}  c5 {[%clk 0:02:56]} 2. Nc3 {[%clk 0:03:00]}  Nc6 {[%clk 0:02:55]} 3. g3 {[%clk 0:03:00]}  g6 {[%clk 0:02:54]} 4. Bg2 {[%clk 0:03:00]}  Bg7 {[%clk 0:02:54]} 5. a3 {[%clk 0:02:59]}  a5 {[%clk 0:02:39]} 6. e3 {[%clk 0:02:58]}  e6 {[%clk 0:02:11]} 7. Nge2 {[%clk 0:02:58]}  Nge7 {[%clk 0:02:11]} 8. O-O {[%clk 0:02:53]}  O-O {[%clk 0:02:11]} 9. d4 {[%clk 0:02:40]}  cxd4 {[%clk 0:02:12]} 10. Nxd4 {[%clk 0:02:37]}  Nxd4 {[%clk 0:02:03]} 11. exd4 {[%clk 0:02:36]}  Qb6 {[%clk 0:02:04]} 12. d5 {[%clk 0:02:33]}  d6 {[%clk 0:01:57]} 13. Be3 {[%clk 0:02:29]}  Qxb2 {[%clk 0:01:53]} 14. Bd4 {[%clk 0:01:39]}  Bxd4 {[%clk 0:01:51]} 15. Qxd4 {[%clk 0:01:40]}  e5 {[%clk 0:01:47]} 16. Qd3 {[%clk 0:01:29]}  Bf5 {[%clk 0:01:42]} 17. Be4 {[%clk 0:01:29]}  Qb6 {[%clk 0:01:16]} 18. Rab1 {[%clk 0:01:23]}  Qa6 {[%clk 0:01:14]} 19. Rb5 {[%clk 0:01:17]}  Rac8 {[%clk 0:01:12]} 20. Rfb1 {[%clk 0:01:15]}  Rc7 {[%clk 0:01:12]} 21. Bxf5 {[%clk 0:00:59]}  Nxf5 {[%clk 0:01:11]} 22. Ne4 {[%clk 0:00:59]}  Rfc8 {[%clk 0:01:07]} 23. g4 {[%clk 0:00:53]}  Nd4 {[%clk 0:01:03]} 24. Rb6 {[%clk 0:00:53]}  Qxc4 {[%clk 0:00:59]} 25. Qxc4 {[%clk 0:00:53]}  Rxc4 {[%clk 0:00:59]} 26. Nxd6 {[%clk 0:00:53]}  Rc1+ {[%clk 0:00:58]} 27. Kg2 {[%clk 0:00:49]}  Rxb1 {[%clk 0:00:55]} 28. Rxb1 {[%clk 0:00:49]}  Rd8 {[%clk 0:00:54]} 29. Ne4 {[%clk 0:00:46]}  b5 {[%clk 0:00:49]} 30. g5 {[%clk 0:00:35]}  Kg7 {[%clk 0:00:46]} 31. d6 {[%clk 0:00:34]}  Rd7 {[%clk 0:00:39]} 32. Rc1 {[%clk 0:00:33]}  Nf5 {[%clk 0:00:27]} 33. Rc7 {[%clk 0:00:32]}  Rd8 {[%clk 0:00:26]} 34. d7 {[%clk 0:00:30]}  h6 {[%clk 0:00:20]} 35. Nf6 {[%clk 0:00:27]}  hxg5 {[%clk 0:00:19]} 36. Rc8 {[%clk 0:00:27]}  Kxf6 {[%clk 0:00:10]} 37. Rxd8 {[%clk 0:00:27]}  Ke7 {[%clk 0:00:11]} 38. Rb8 {[%clk 0:00:26]}  Kxd7 {[%clk 0:00:10]} 39. Rxb5 {[%clk 0:00:27]}  a4 {[%clk 0:00:10]} 40. Ra5 {[%clk 0:00:25]}  e4 {[%clk 0:00:10]} 41. Rxa4 {[%clk 0:00:25]}  e3 {[%clk 0:00:11]} 42. fxe3 {[%clk 0:00:19]}  Nxe3+ {[%clk 0:00:11]} 43. Kf3 {[%clk 0:00:18]}  Nd5 {[%clk 0:00:09]} 44. Ra7+ {[%clk 0:00:17]}  Ke6 {[%clk 0:00:09]} 45. a4 {[%clk 0:00:17]}  f5 {[%clk 0:00:10]} 46. a5 {[%clk 0:00:16]}  g4+ {[%clk 0:00:09]} 47. Kf2 {[%clk 0:00:14]}  g5 {[%clk 0:00:09]} 48. Rg7 {[%clk 0:00:14]}  Kf6 {[%clk 0:00:09]} 49. Rg8 {[%clk 0:00:13]}  Nb4 {[%clk 0:00:09]} 50. Rb8 {[%clk 0:00:12]}  Nd3+ {[%clk 0:00:08]} 51. Ke3 {[%clk 0:00:12]}  Nc5 {[%clk 0:00:07]} 52. Rb6+ {[%clk 0:00:11]}  Ke5 {[%clk 0:00:07]} 53. Rb5 {[%clk 0:00:09]}  f4+ {[%clk 0:00:07]} 54. Kf2 {[%clk 0:00:09]}  Kd4 {[%clk 0:00:07]} 55. Rb6 {[%clk 0:00:07]}  Ne4+ {[%clk 0:00:06]} 56. Kf1 {[%clk 0:00:07]}  g3 {[%clk 0:00:05]} 57. hxg3 {[%clk 0:00:06]}  Nxg3+ {[%clk 0:00:05]} 58. Kg2 {[%clk 0:00:07]}  g4 {[%clk 0:00:05]} 59. Rf6 {[%clk 0:00:06]}  Ke5 {[%clk 0:00:04]} 60. Rf8 {[%clk 0:00:04]}  Nf5 {[%clk 0:00:04]} 61. a6 {[%clk 0:00:04]}  f3+ {[%clk 0:00:04]} 62. Kf2 {[%clk 0:00:04]}  Kf4 {[%clk 0:00:04]} 63. a7 {[%clk 0:00:04]}  g3+ {[%clk 0:00:05]} 64. Ke1 {[%clk 0:00:04]}  f2+ {[%clk 0:00:04]} 65. Ke2 {[%clk 0:00:04]}  Ke4 {[%clk 0:00:00]} 66. Rxf5 {[%clk 0:00:04]} 1-0


[Site "https://www.chess.com"]

[Event "Titled Tuesday Blitz July 25 Late 2023"]
[White "Thiel, Thomas"]
[Black "Grossboss19"]
[WhiteFideId "4615964"]
[WhiteElo "2273"]
[BlackElo "2460"]
[Result "0-1"]
[Round "4"]
[TimeControl "180+2"]
[Date "2023.07.25"]
[WhiteClock "0:00:00"]
[BlackClock "0:00:45"]
[Board "143"]

1. e4 {[%clk 0:03:00]}  e5 {[%clk 0:02:56]} 2. Nf3 {[%clk 0:02:58]}  Nc6 {[%clk 0:02:56]} 3. d4 {[%clk 0:02:58]}  exd4 {[%clk 0:02:56]} 4. Nxd4 {[%clk 0:02:58]}  Bc5 {[%clk 0:02:54]} 5. Nxc6 {[%clk 0:02:57]}  dxc6 {[%clk 0:02:53]} 6. Qxd8+ {[%clk 0:02:55]}  Kxd8 {[%clk 0:02:53]} 7. Bc4 {[%clk 0:02:54]}  Be6 {[%clk 0:02:53]} 8. Bxe6 {[%clk 0:02:53]}  fxe6 {[%clk 0:02:54]} 9. Nc3 {[%clk 0:02:46]}  Bd4 {[%clk 0:02:51]} 10. Bg5+ {[%clk 0:02:41]}  Ke8 {[%clk 0:02:50]} 11. Bd2 {[%clk 0:02:21]}  Nf6 {[%clk 0:02:38]} 12. f3 {[%clk 0:02:20]}  b5 {[%clk 0:02:29]} 13. O-O-O {[%clk 0:02:17]}  Rd8 {[%clk 0:02:28]} 14. Ne2 {[%clk 0:02:16]}  Bb6 {[%clk 0:02:25]} 15. b3 {[%clk 0:02:00]}  Kf7 {[%clk 0:02:21]} 16. c4 {[%clk 0:01:59]}  a6 {[%clk 0:02:12]} 17. Kc2 {[%clk 0:01:58]}  Rd7 {[%clk 0:02:09]} 18. Bb4 {[%clk 0:01:48]}  Rhd8 {[%clk 0:02:05]} 19. Rxd7+ {[%clk 0:01:33]}  Rxd7 {[%clk 0:02:02]} 20. Rd1 {[%clk 0:01:34]}  Rxd1 {[%clk 0:02:00]} 21. Kxd1 {[%clk 0:01:35]}  Nd7 {[%clk 0:02:00]} 22. Bc3 {[%clk 0:01:31]}  Bc5 {[%clk 0:01:51]} 23. Nf4 {[%clk 0:01:29]}  Bd6 {[%clk 0:01:42]} 24. Nd3 {[%clk 0:01:14]}  Bxh2 {[%clk 0:01:41]} 25. Nb4 {[%clk 0:01:13]}  Nb8 {[%clk 0:01:36]} 26. Ke2 {[%clk 0:01:07]}  Bd6 {[%clk 0:01:34]} 27. Nd3 {[%clk 0:01:06]}  Nd7 {[%clk 0:01:33]} 28. Bd4 {[%clk 0:00:52]}  c5 {[%clk 0:01:25]} 29. Bc3 {[%clk 0:00:50]}  c6 {[%clk 0:01:21]} 30. g4 {[%clk 0:00:45]}  Nb6 {[%clk 0:01:17]} 31. Nb2 {[%clk 0:00:36]}  g6 {[%clk 0:01:11]} 32. Ba5 {[%clk 0:00:35]}  Nd7 {[%clk 0:01:07]} 33. Bc3 {[%clk 0:00:32]}  h5 {[%clk 0:01:03]} 34. gxh5 {[%clk 0:00:29]}  gxh5 {[%clk 0:01:04]} 35. Kf2 {[%clk 0:00:23]}  Be5 {[%clk 0:00:53]} 36. Bxe5 {[%clk 0:00:10]}  Nxe5 {[%clk 0:00:54]} 37. a4 {[%clk 0:00:00]}  Kf6 {[%clk 0:00:45]} 0-1


[Site "https://www.chess.com"]

[Event "Titled Tuesday Blitz July 25 Late 2023"]
[White "Castella Garcia, Fausto"]
[Black "Doluhanova, Evgeniya"]
[WhiteFideId "3501922"]
[BlackFideId "14112035"]
[WhiteElo "2450"]
[BlackElo "2261"]
[Result "1-0"]
[Round "4"]
[TimeControl "180+2"]
[Date "2023.07.25"]
[WhiteClock "0:00:11"]
[BlackClock "0:00:00"]
[Board "146"]

1. e4 {[%clk 0:02:56]}  c5 {[%clk 0:02:59]} 2. Nf3 {[%clk 0:02:57]}  d6 {[%clk 0:02:56]} 3. d4 {[%clk 0:02:53]}  cxd4 {[%clk 0:02:57]} 4. Nxd4 {[%clk 0:02:54]}  Nf6 {[%clk 0:02:57]} 5. Nc3 {[%clk 0:02:54]}  a6 {[%clk 0:02:58]} 6. Bg5 {[%clk 0:02:54]}  Nbd7 {[%clk 0:02:55]} 7. Qe2 {[%clk 0:02:53]}  Qb6 {[%clk 0:02:52]} 8. O-O-O {[%clk 0:02:52]}  e6 {[%clk 0:02:41]} 9. f4 {[%clk 0:02:49]}  h6 {[%clk 0:02:39]} 10. Bh4 {[%clk 0:02:48]}  Be7 {[%clk 0:02:31]} 11. Bf2 {[%clk 0:02:47]}  Qc7 {[%clk 0:02:30]} 12. g3 {[%clk 0:02:43]}  b5 {[%clk 0:02:28]} 13. Bg2 {[%clk 0:02:44]}  Bb7 {[%clk 0:02:27]} 14. a3 {[%clk 0:02:40]}  Rc8 {[%clk 0:02:25]} 15. Kb1 {[%clk 0:02:40]}  Nc5 {[%clk 0:02:16]} 16. Bf3 {[%clk 0:02:33]}  Nfd7 {[%clk 0:02:06]} 17. Rhe1 {[%clk 0:02:18]}  Nb6 {[%clk 0:01:53]} 18. e5 {[%clk 0:02:09]}  d5 {[%clk 0:01:51]} 19. f5 {[%clk 0:02:07]}  Nba4 {[%clk 0:01:34]} 20. Nxa4 {[%clk 0:02:04]}  Nxa4 {[%clk 0:01:25]} 21. fxe6 {[%clk 0:02:00]}  Nxb2 {[%clk 0:01:24]} 22. exf7+ {[%clk 0:01:56]}  Kxf7 {[%clk 0:01:17]} 23. Bh5+ {[%clk 0:01:49]}  Kg8 {[%clk 0:01:16]} 24. Bg4 {[%clk 0:01:22]}  Qc3 {[%clk 0:00:41]} 25. Be6+ {[%clk 0:01:16]}  Kh7 {[%clk 0:00:38]} 26. Qg4 {[%clk 0:00:45]}  Rhf8 {[%clk 0:00:26]} 27. Bf5+ {[%clk 0:00:39]}  Kh8 {[%clk 0:00:23]} 28. Ne6 {[%clk 0:00:24]}  g5 {[%clk 0:00:15]} 29. Bd4 {[%clk 0:00:20]}  Nxd1 {[%clk 0:00:08]} 30. Bxc3 {[%clk 0:00:20]}  Nxc3+ {[%clk 0:00:09]} 31. Ka1 {[%clk 0:00:17]}  Bxa3 {[%clk 0:00:00]} 32. Qh5 {[%clk 0:00:11]} 1-0


[Site "https://www.chess.com"]

[Event "Titled Tuesday Blitz July 25 Late 2023"]
[White "Balla, Tamas-Kristof"]
[Black "Sarkar, Justin"]
[WhiteFideId "1208497"]
[BlackFideId "2010011"]
[WhiteElo "2445"]
[BlackElo "2238"]
[Result "1-0"]
[Round "4"]
[TimeControl "180+2"]
[Date "2023.07.25"]
[WhiteClock "0:01:25"]
[BlackClock "0:00:00"]
[Board "148"]

1. e4 {[%clk 0:02:55]}  c5 {[%clk 0:02:56]} 2. c3 {[%clk 0:02:54]}  d5 {[%clk 0:02:50]} 3. exd5 {[%clk 0:02:54]}  Qxd5 {[%clk 0:02:49]} 4. d4 {[%clk 0:02:55]}  Bf5 {[%clk 0:02:31]} 5. Nf3 {[%clk 0:02:30]}  Nc6 {[%clk 0:02:26]} 6. Be3 {[%clk 0:02:28]}  cxd4 {[%clk 0:02:09]} 7. cxd4 {[%clk 0:02:27]}  e6 {[%clk 0:01:37]} 8. Nc3 {[%clk 0:02:26]}  Bb4 {[%clk 0:01:36]} 9. Be2 {[%clk 0:02:26]}  Nge7 {[%clk 0:01:15]} 10. O-O {[%clk 0:02:25]}  Bxc3 {[%clk 0:01:08]} 11. bxc3 {[%clk 0:02:26]}  O-O {[%clk 0:01:07]} 12. Qd2 {[%clk 0:02:18]}  Rfd8 {[%clk 0:00:44]} 13. h3 {[%clk 0:02:12]}  Rac8 {[%clk 0:00:26]} 14. Rfd1 {[%clk 0:02:06]}  Na5 {[%clk 0:00:22]} 15. Bd3 {[%clk 0:01:59]}  Bxd3 {[%clk 0:00:12]} 16. Qxd3 {[%clk 0:02:00]}  Nc4 {[%clk 0:00:12]} 17. Nd2 {[%clk 0:01:56]}  Nxd2 {[%clk 0:00:09]} 18. Qxd2 {[%clk 0:01:51]}  Nf5 {[%clk 0:00:08]} 19. Rac1 {[%clk 0:01:51]}  Nh4 {[%clk 0:00:08]} 20. f3 {[%clk 0:01:47]}  f6 {[%clk 0:00:08]} 21. Bf2 {[%clk 0:01:46]}  Nf5 {[%clk 0:00:07]} 22. Qd3 {[%clk 0:01:45]}  Nd6 {[%clk 0:00:06]} 23. Re1 {[%clk 0:01:44]}  b6 {[%clk 0:00:04]} 24. Qe2 {[%clk 0:01:44]}  Re8 {[%clk 0:00:04]} 25. Bg3 {[%clk 0:01:44]}  Nc4 {[%clk 0:00:03]} 26. Kh1 {[%clk 0:01:25]}  h5 {[%clk 0:00:03]} 27. Rb1 {[%clk 0:01:25]}  Rc6 {[%clk 0:00:03]} 28. a4 {[%clk 0:01:25]}  Rec8 {[%clk 0:00:03]} 29. Rb5 {[%clk 0:01:25]}  Qd7 {[%clk 0:00:02]} 30. Rxh5 {[%clk 0:01:25]}  Na5 {[%clk 0:00:00]} 31. Qd3 {[%clk 0:01:25]} 1-0


[Site "https://www.chess.com"]

[Event "Titled Tuesday Blitz July 25 Late 2023"]
[White "De Souza, Cristiano Gomes"]
[Black "Szyszylo, Rafal"]
[WhiteFideId "2151758"]
[BlackFideId "1109626"]
[WhiteElo "2230"]
[BlackElo "2442"]
[Result "0-1"]
[Round "4"]
[TimeControl "180+2"]
[Date "2023.07.25"]
[WhiteClock "0:00:47"]
[BlackClock "0:00:31"]
[Board "150"]

1. d4 {[%clk 0:02:49]}  d6 {[%clk 0:03:00]} 2. c4 {[%clk 0:02:49]}  g6 {[%clk 0:03:00]} 3. Nf3 {[%clk 0:02:49]}  Bg7 {[%clk 0:03:00]} 4. Nc3 {[%clk 0:02:49]}  Nf6 {[%clk 0:03:00]} 5. e4 {[%clk 0:02:49]}  O-O {[%clk 0:02:59]} 6. Be2 {[%clk 0:02:49]}  Nbd7 {[%clk 0:02:57]} 7. O-O {[%clk 0:02:50]}  e5 {[%clk 0:02:56]} 8. Be3 {[%clk 0:02:47]}  h6 {[%clk 0:02:55]} 9. h3 {[%clk 0:02:47]}  exd4 {[%clk 0:02:54]} 10. Nxd4 {[%clk 0:02:47]}  Nc5 {[%clk 0:02:54]} 11. Qc2 {[%clk 0:02:47]}  Re8 {[%clk 0:02:54]} 12. Bf3 {[%clk 0:02:45]}  a5 {[%clk 0:02:48]} 13. b3 {[%clk 0:02:44]}  c6 {[%clk 0:02:33]} 14. Rfe1 {[%clk 0:02:33]}  Nh7 {[%clk 0:02:20]} 15. Rad1 {[%clk 0:02:30]}  Ng5 {[%clk 0:02:18]} 16. Bxg5 {[%clk 0:02:23]}  Qxg5 {[%clk 0:02:17]} 17. Kh1 {[%clk 0:02:17]}  Be5 {[%clk 0:02:09]} 18. Nde2 {[%clk 0:02:03]}  Qh4 {[%clk 0:02:07]} 19. Kg1 {[%clk 0:01:49]}  g5 {[%clk 0:01:16]} 20. a3 {[%clk 0:01:40]}  h5 {[%clk 0:01:15]} 21. b4 {[%clk 0:01:27]}  axb4 {[%clk 0:01:14]} 22. axb4 {[%clk 0:01:26]}  Na6 {[%clk 0:01:05]} 23. g3 {[%clk 0:01:24]}  Qxh3 {[%clk 0:01:05]} 24. Bg2 {[%clk 0:01:24]}  Qe6 {[%clk 0:01:03]} 25. Qb3 {[%clk 0:01:21]}  Qg6 {[%clk 0:00:44]} 26. f4 {[%clk 0:01:15]}  gxf4 {[%clk 0:00:43]} 27. gxf4 {[%clk 0:01:16]}  Bh3 {[%clk 0:00:32]} 28. Rd3 {[%clk 0:00:47]}  Qxg2# {[%clk 0:00:31]} 0-1


[Site "https://www.chess.com"]

[Event "Titled Tuesday Blitz July 25 Late 2023"]
[White "Ardila, Oscar Humberto"]
[Black "Ladan, Nicholas"]
[WhiteFideId "4404742"]
[BlackFideId "30918855"]
[WhiteElo "2227"]
[BlackElo "2436"]
[Result "0-1"]
[Round "4"]
[TimeControl "180+2"]
[Date "2023.07.25"]
[WhiteClock "0:00:00"]
[BlackClock "0:00:16"]
[Board "152"]

1. d4 {[%clk 0:02:59]}  e6 {[%clk 0:02:58]} 2. Nf3 {[%clk 0:02:58]}  Nf6 {[%clk 0:02:59]} 3. Bg5 {[%clk 0:02:58]}  d5 {[%clk 0:02:56]} 4. Nbd2 {[%clk 0:02:56]}  Be7 {[%clk 0:02:54]} 5. c3 {[%clk 0:02:54]}  b6 {[%clk 0:02:51]} 6. g3 {[%clk 0:02:55]}  Bb7 {[%clk 0:02:51]} 7. Bg2 {[%clk 0:02:55]}  c5 {[%clk 0:02:52]} 8. e3 {[%clk 0:02:54]}  Nbd7 {[%clk 0:02:52]} 9. O-O {[%clk 0:02:54]}  O-O {[%clk 0:02:53]} 10. Re1 {[%clk 0:02:52]}  h6 {[%clk 0:02:53]} 11. Bxf6 {[%clk 0:02:48]}  Nxf6 {[%clk 0:02:54]} 12. Ne5 {[%clk 0:02:46]}  a5 {[%clk 0:02:40]} 13. f4 {[%clk 0:02:44]}  b5 {[%clk 0:02:39]} 14. Qe2 {[%clk 0:02:40]}  Qb6 {[%clk 0:02:36]} 15. g4 {[%clk 0:02:33]}  Rfd8 {[%clk 0:02:29]} 16. h4 {[%clk 0:02:33]}  Ne4 {[%clk 0:02:25]} 17. Nxe4 {[%clk 0:02:19]}  dxe4 {[%clk 0:02:24]} 18. g5 {[%clk 0:02:20]}  hxg5 {[%clk 0:02:11]} 19. hxg5 {[%clk 0:02:18]}  g6 {[%clk 0:02:10]} 20. Kf2 {[%clk 0:02:14]}  Kg7 {[%clk 0:02:06]} 21. Rh1 {[%clk 0:02:14]}  Rh8 {[%clk 0:01:51]} 22. Qg4 {[%clk 0:01:59]}  b4 {[%clk 0:01:43]} 23. Nd7 {[%clk 0:01:35]}  Qb5 {[%clk 0:01:31]} 24. Nf6 {[%clk 0:01:31]}  bxc3 {[%clk 0:01:25]} 25. bxc3 {[%clk 0:01:22]}  Qb2+ {[%clk 0:01:22]} 26. Kg3 {[%clk 0:01:21]}  Qd2 {[%clk 0:01:15]} 27. Rxh8 {[%clk 0:00:48]}  Qxe3+ {[%clk 0:01:11]} 28. Qf3 {[%clk 0:00:31]}  Qxf3+ {[%clk 0:01:01]} 29. Bxf3 {[%clk 0:00:32]}  Rxh8 {[%clk 0:00:59]} 30. Bxe4 {[%clk 0:00:31]}  Ba6 {[%clk 0:00:42]} 31. d5 {[%clk 0:00:24]}  Bxf6 {[%clk 0:00:40]} 32. gxf6+ {[%clk 0:00:23]}  Kxf6 {[%clk 0:00:41]} 33. d6 {[%clk 0:00:23]}  Rd8 {[%clk 0:00:38]} 34. Rd1 {[%clk 0:00:22]}  Bc4 {[%clk 0:00:31]} 35. a3 {[%clk 0:00:21]}  e5 {[%clk 0:00:31]} 36. Bf3 {[%clk 0:00:15]}  exf4+ {[%clk 0:00:29]} 37. Kxf4 {[%clk 0:00:15]}  g5+ {[%clk 0:00:29]} 38. Ke3 {[%clk 0:00:13]}  Ke5 {[%clk 0:00:26]} 39. d7 {[%clk 0:00:07]}  f5 {[%clk 0:00:25]} 40. Bc6 {[%clk 0:00:07]}  f4+ {[%clk 0:00:24]} 41. Kf3 {[%clk 0:00:06]}  g4+ {[%clk 0:00:21]} 42. Kxg4 {[%clk 0:00:06]}  Be2+ {[%clk 0:00:21]} 43. Kh4 {[%clk 0:00:05]}  Bxd1 {[%clk 0:00:19]} 44. Kg5 {[%clk 0:00:04]}  f3 {[%clk 0:00:17]} 45. Kh4 {[%clk 0:00:04]}  f2 {[%clk 0:00:16]} 46. Kg3 {[%clk 0:00:00]}  f1=Q {[%clk 0:00:16]} 0-1


[Site "https://www.chess.com"]

[Event "Titled Tuesday Blitz July 25 Late 2023"]
[White "Reprintsev, Alexander"]
[Black "Lopez Perdomo, Juan David"]
[WhiteFideId "14100541"]
[BlackFideId "4405137"]
[WhiteElo "2434"]
[BlackElo "2206"]
[Result "0-1"]
[Round "4"]
[TimeControl "180+2"]
[Date "2023.07.25"]
[WhiteClock "0:01:31"]
[BlackClock "0:02:04"]
[Board "155"]

1. e4 {[%clk 0:03:00]}  c5 {[%clk 0:02:54]} 2. b3 {[%clk 0:03:00]}  e6 {[%clk 0:02:54]} 3. Nf3 {[%clk 0:02:58]}  d6 {[%clk 0:02:54]} 4. Bb2 {[%clk 0:02:57]}  Nf6 {[%clk 0:02:54]} 5. e5 {[%clk 0:02:54]}  dxe5 {[%clk 0:02:52]} 6. Nxe5 {[%clk 0:02:54]}  Nbd7 {[%clk 0:02:49]} 7. Qf3 {[%clk 0:02:05]}  Nxe5 {[%clk 0:02:47]} 8. Bxe5 {[%clk 0:02:04]}  a6 {[%clk 0:02:31]} 9. Nc3 {[%clk 0:01:55]}  Be7 {[%clk 0:02:30]} 10. O-O-O {[%clk 0:01:54]}  O-O {[%clk 0:02:24]} 11. d4 {[%clk 0:01:54]}  Qa5 {[%clk 0:02:21]} 12. dxc5 {[%clk 0:01:46]}  Qxc5 {[%clk 0:02:05]} 13. Kb1 {[%clk 0:01:31]}  Qxe5 {[%clk 0:02:04]} 0-1


[Site "https://www.chess.com"]

[Event "Titled Tuesday Blitz July 25 Late 2023"]
[White "Osmonbekov, Talaibek"]
[Black "Necromon"]
[WhiteFideId "2017253"]
[WhiteElo "2164"]
[BlackElo "2431"]
[Result "0-1"]
[Round "4"]
[TimeControl "180+2"]
[Date "2023.07.25"]
[WhiteClock "0:00:12"]
[BlackClock "0:00:29"]
[Board "156"]

1. d4 {[%clk 0:03:00]}  d5 {[%clk 0:02:59]} 2. Nc3 {[%clk 0:03:00]}  c6 {[%clk 0:02:55]} 3. Bf4 {[%clk 0:03:00]}  Nf6 {[%clk 0:02:53]} 4. e3 {[%clk 0:02:59]}  e6 {[%clk 0:02:50]} 5. Nf3 {[%clk 0:02:55]}  Bd6 {[%clk 0:02:50]} 6. Bg3 {[%clk 0:02:53]}  O-O {[%clk 0:02:42]} 7. Ne5 {[%clk 0:02:52]}  Qc7 {[%clk 0:02:40]} 8. f4 {[%clk 0:02:51]}  b5 {[%clk 0:02:35]} 9. Bd3 {[%clk 0:02:48]}  b4 {[%clk 0:02:35]} 10. Ne2 {[%clk 0:02:48]}  c5 {[%clk 0:02:36]} 11. dxc5 {[%clk 0:02:44]}  Qxc5 {[%clk 0:02:31]} 12. Nd4 {[%clk 0:02:45]}  Ba6 {[%clk 0:02:25]} 13. O-O {[%clk 0:02:44]}  Ne4 {[%clk 0:02:21]} 14. Bxa6 {[%clk 0:02:13]}  Nxa6 {[%clk 0:02:18]} 15. Nd7 {[%clk 0:02:12]}  Qc7 {[%clk 0:02:15]} 16. Nxf8 {[%clk 0:02:11]}  Rxf8 {[%clk 0:02:14]} 17. Nb5 {[%clk 0:01:32]}  Qc5 {[%clk 0:02:09]} 18. Nd4 {[%clk 0:01:27]}  Rc8 {[%clk 0:01:56]} 19. a3 {[%clk 0:01:22]}  bxa3 {[%clk 0:01:47]} 20. Rxa3 {[%clk 0:01:21]}  Qb6 {[%clk 0:01:47]} 21. Rb3 {[%clk 0:01:20]}  Qd8 {[%clk 0:01:44]} 22. Rb7 {[%clk 0:01:14]}  Rc7 {[%clk 0:01:26]} 23. Rxc7 {[%clk 0:01:11]}  Bxc7 {[%clk 0:01:24]} 24. Qd3 {[%clk 0:01:08]}  Nac5 {[%clk 0:01:22]} 25. Qb5 {[%clk 0:01:06]}  Bb6 {[%clk 0:01:17]} 26. Ra1 {[%clk 0:00:59]}  h5 {[%clk 0:01:07]} 27. Be1 {[%clk 0:00:57]}  h4 {[%clk 0:00:53]} 28. h3 {[%clk 0:00:54]}  Nb7 {[%clk 0:00:47]} 29. Qc6 {[%clk 0:00:50]}  Nbd6 {[%clk 0:00:45]} 30. Bb4 {[%clk 0:00:44]}  Nc4 {[%clk 0:00:39]} 31. Re1 {[%clk 0:00:34]}  Nxe3 {[%clk 0:00:36]} 32. c3 {[%clk 0:00:26]}  Nc2 {[%clk 0:00:34]} 33. Rxe4 {[%clk 0:00:22]}  dxe4 {[%clk 0:00:32]} 34. Qxe4 {[%clk 0:00:23]}  Nxb4 {[%clk 0:00:32]} 35. f5 {[%clk 0:00:16]}  Qd5 {[%clk 0:00:28]} 36. Qxd5 {[%clk 0:00:14]}  Nxd5 {[%clk 0:00:26]} 37. fxe6 {[%clk 0:00:14]}  fxe6 {[%clk 0:00:27]} 38. Kf1 {[%clk 0:00:13]}  Bxd4 {[%clk 0:00:27]} 39. cxd4 {[%clk 0:00:13]}  Kf7 {[%clk 0:00:27]} 40. Kf2 {[%clk 0:00:14]}  Kg6 {[%clk 0:00:27]} 41. Kf3 {[%clk 0:00:14]}  Kf5 {[%clk 0:00:27]} 42. b3 {[%clk 0:00:13]}  a5 {[%clk 0:00:27]} 43. g4+ {[%clk 0:00:11]}  hxg3 {[%clk 0:00:27]} 44. Kxg3 {[%clk 0:00:12]}  Ke4 {[%clk 0:00:27]} 45. Kg4 {[%clk 0:00:11]}  Kxd4 {[%clk 0:00:27]} 46. Kg5 {[%clk 0:00:12]}  e5 {[%clk 0:00:27]} 47. Kg6 {[%clk 0:00:13]}  e4 {[%clk 0:00:28]} 48. Kxg7 {[%clk 0:00:14]}  e3 {[%clk 0:00:29]} 49. h4 {[%clk 0:00:15]}  e2 {[%clk 0:00:29]} 50. h5 {[%clk 0:00:16]}  e1=Q {[%clk 0:00:30]} 51. h6 {[%clk 0:00:16]}  Qe7+ {[%clk 0:00:29]} 52. Kg6 {[%clk 0:00:15]}  Qf6+ {[%clk 0:00:28]} 53. Kh5 {[%clk 0:00:15]}  Ke5 {[%clk 0:00:28]} 54. h7 {[%clk 0:00:15]}  Kf4 {[%clk 0:00:29]} 55. h8=Q {[%clk 0:00:12]}  Qg5# {[%clk 0:00:29]} 0-1


[Site "https://www.chess.com"]

[Event "Titled Tuesday Blitz July 25 Late 2023"]
[White "Krzywda, Andrzej"]
[Black "Novikova, Margarita"]
[WhiteFideId "1114565"]
[BlackFideId "14109689"]
[WhiteElo "2427"]
[BlackElo "2167"]
[Result "1/2-1/2"]
[Round "4"]
[TimeControl "180+2"]
[Date "2023.07.25"]
[WhiteClock "0:00:28"]
[BlackClock "0:00:32"]
[Board "157"]

1. e4 {[%clk 0:03:00]}  e5 {[%clk 0:02:58]} 2. Nf3 {[%clk 0:03:00]}  Nc6 {[%clk 0:02:57]} 3. Bb5 {[%clk 0:03:01]}  a6 {[%clk 0:02:50]} 4. Ba4 {[%clk 0:03:01]}  Nf6 {[%clk 0:02:46]} 5. O-O {[%clk 0:03:01]}  b5 {[%clk 0:02:42]} 6. Bb3 {[%clk 0:03:00]}  Be7 {[%clk 0:02:41]} 7. Re1 {[%clk 0:02:58]}  O-O {[%clk 0:02:40]} 8. a4 {[%clk 0:02:58]}  Bb7 {[%clk 0:02:39]} 9. d3 {[%clk 0:02:58]}  d6 {[%clk 0:02:37]} 10. Nc3 {[%clk 0:02:52]}  b4 {[%clk 0:02:34]} 11. Nd5 {[%clk 0:02:47]}  Nxd5 {[%clk 0:02:34]} 12. Bxd5 {[%clk 0:02:45]}  Na5 {[%clk 0:02:33]} 13. Bxb7 {[%clk 0:02:32]}  Nxb7 {[%clk 0:02:32]} 14. d4 {[%clk 0:02:32]}  Bf6 {[%clk 0:02:30]} 15. Be3 {[%clk 0:02:16]}  a5 {[%clk 0:02:28]} 16. d5 {[%clk 0:02:14]}  Qd7 {[%clk 0:02:23]} 17. c4 {[%clk 0:02:08]}  c5 {[%clk 0:02:19]} 18. b3 {[%clk 0:01:50]}  h6 {[%clk 0:02:15]} 19. h3 {[%clk 0:01:50]}  Be7 {[%clk 0:02:09]} 20. Nd2 {[%clk 0:01:44]}  f5 {[%clk 0:02:08]} 21. exf5 {[%clk 0:01:43]}  Qxf5 {[%clk 0:02:07]} 22. Qb1 {[%clk 0:01:40]}  Qf7 {[%clk 0:02:02]} 23. Qe4 {[%clk 0:01:39]}  Qf5 {[%clk 0:01:55]} 24. Qg4 {[%clk 0:01:27]}  Qxg4 {[%clk 0:01:52]} 25. hxg4 {[%clk 0:01:28]}  Nd8 {[%clk 0:01:48]} 26. Ne4 {[%clk 0:01:28]}  Nf7 {[%clk 0:01:47]} 27. f3 {[%clk 0:01:28]}  Bg5 {[%clk 0:01:40]} 28. Bxg5 {[%clk 0:01:21]}  hxg5 {[%clk 0:01:39]} 29. Kf2 {[%clk 0:01:21]}  Kh7 {[%clk 0:01:38]} 30. Rh1+ {[%clk 0:01:21]}  Kg6 {[%clk 0:01:38]} 31. Rh5 {[%clk 0:01:20]}  Rh8 {[%clk 0:01:36]} 32. Rah1 {[%clk 0:01:20]}  Rxh5 {[%clk 0:01:35]} 33. Rxh5 {[%clk 0:01:18]}  Rd8 {[%clk 0:01:23]} 34. g3 {[%clk 0:01:18]}  Rf8 {[%clk 0:01:20]} 35. Ke3 {[%clk 0:01:18]}  Rd8 {[%clk 0:01:10]} 36. Rh2 {[%clk 0:01:16]}  Rd7 {[%clk 0:01:05]} 37. Rh5 {[%clk 0:01:09]}  Rd8 {[%clk 0:01:04]} 38. Rh1 {[%clk 0:01:09]}  Rd7 {[%clk 0:01:04]} 39. Rd1 {[%clk 0:01:09]}  Nh6 {[%clk 0:00:57]} 40. Kf2 {[%clk 0:01:01]}  Rd8 {[%clk 0:00:53]} 41. Kg2 {[%clk 0:01:00]}  Nf7 {[%clk 0:00:46]} 42. Rh1 {[%clk 0:01:00]}  Rd7 {[%clk 0:00:44]} 43. Rh5 {[%clk 0:00:52]}  Re7 {[%clk 0:00:43]} 44. Rh1 {[%clk 0:00:46]}  Re8 {[%clk 0:00:42]} 45. Rh3 {[%clk 0:00:42]}  Re7 {[%clk 0:00:41]} 46. Rh1 {[%clk 0:00:35]}  Re8 {[%clk 0:00:41]} 47. Re1 {[%clk 0:00:35]}  Rh8 {[%clk 0:00:37]} 48. Rh1 {[%clk 0:00:28]}  Re8 {[%clk 0:00:32]} 1/2-1/2


[Site "https://www.chess.com"]